bitfinex-derivatives/quotes_BTCF0:USTF0_20251028
["timestamp","ask_amount","ask_price","bid_price","bid_amount"]
[1761694446986,0.40481,112990.0,112980.0,0.41070948]
[1761694447287,0.40481,112990.0,112980.0,0.25557224]
[1761694448394,0.3618,112990.0,112980.0,0.49921478]
[1761694448893,0.3618,112990.0,112980.0,1.25699202]
[1761694449191,0.001,112990.0,112980.0,0.49921478]
[1761694449991,0.40637,113000.0,112990.0,0.05591]
[1761694450180,0.40637,113000.0,112990.0,0.21104724]
[1761694451493,0.40637,113000.0,112990.0,0.05591]
[1761694452594,0.40637,113000.0,112990.0,0.21104724]
[1761694453200,0.40737,113000.0,112990.0,0.21104724]
[1761694453399,0.40737,113000.0,112990.0,0.21100266]
[1761694455500,0.57287266,113000.0,112990.0,0.19794266]
[1761694455898,0.05798,112990.0,112980.0,0.10655224]
[1761694456103,0.57387266,112990.0,112980.0,0.3949249]
[1761694457092,0.57387266,112990.0,112980.0,0.19798266]
[1761694457291,0.57387266,112990.0,112980.0,0.34532266]
[1761694458090,0.04513,112990.0,112980.0,0.34532266]
[1761694458299,0.40593,112990.0,112980.0,0.34532266]
[1761694459597,0.40593,112990.0,112980.0,0.50041532]
[1761694459801,0.40593,112990.0,112980.0,0.43382816]
[1761694459998,0.40593,112990.0,112980.0,0.51347793]
[1761694461391,0.40593,112990.0,112980.0,0.42497243]
[1761694461797,0.56102266,112990.0,112980.0,0.42497243]
[1761694462194,0.56102266,112990.0,112980.0,0.34532266]
[1761694462396,0.57387266,112990.0,112980.0,0.34532266]
[1761694464306,0.57387266,112990.0,112980.0,0.21204266]
[1761694464508,0.57387266,112990.0,112980.0,0.34536266]
[1761694466607,0.57387266,112990.0,112980.0,0.17721]
[1761694466806,0.57387266,112990.0,112980.0,0.17717]
[1761694470513,0.57387266,112990.0,112980.0,0.34532266]
[1761694471209,0.40593,112990.0,112980.0,0.34532266]
[1761694477718,0.40593,112990.0,112980.0,0.19023]
[1761694477909,0.40593,112990.0,112980.0,0.34532266]
[1761694478716,0.40593,112990.0,112980.0,0.50041532]
[1761694479012,0.04513,112990.0,112980.0,0.50041532]
[1761694479401,0.40593,112990.0,112980.0,0.50041532]
[1761694479917,0.04513,112990.0,112980.0,0.50041532]
[1761694480803,0.40593,112990.0,112980.0,0.34532266]
[1761694481006,0.56102266,112990.0,112980.0,0.34532266]
[1761694481717,0.57387266,112990.0,112980.0,0.34532266]
[1761694482221,0.56102266,112990.0,112980.0,0.34532266]
[1761694484822,0.40593,112990.0,112980.0,0.34532266]
[1761694485222,0.04513,112990.0,112980.0,0.34532266]
[1761694486128,0.04513,112990.0,112980.0,0.42497243]
[1761694486325,0.04513,112990.0,112980.0,0.58006509]
[1761694486517,0.04513,112990.0,112980.0,0.66857049]
[1761694486723,0.04513,112990.0,112980.0,0.58892072]
[1761694487026,0.04513,112990.0,112980.0,0.50041532]
[1761694488024,0.40593,112990.0,112980.0,0.50041532]
[1761694489224,0.40593,112990.0,112980.0,0.34532266]
[1761694489825,0.40593,112990.0,112980.0,0.50041532]
[1761694493328,0.04513,112990.0,112980.0,0.50041532]
[1761694494429,0.40593,112990.0,112980.0,0.50041532]
[1761694494630,0.04513,112990.0,112980.0,0.50041532]
[1761694495728,0.40593,112990.0,112980.0,0.50041532]
[1761694496420,0.04513,112990.0,112980.0,0.58892062]
[1761694496733,0.02171,113000.0,112990.0,0.05664]
[1761694496923,0.02171,113000.0,112990.0,0.21173266]
[1761694497229,0.04475,113000.0,112990.0,0.21173266]
[1761694498031,0.04575,113000.0,112990.0,0.21173266]
[1761694498828,0.40655,113000.0,112990.0,0.21173266]
[1761694500225,0.3618,113000.0,112990.0,0.15402658]
[1761694500431,0.02171,113020.0,113010.0,0.0557]
[1761694500620,0.04475,113020.0,113010.0,0.70483266]
[1761694500821,0.06816881,113020.0,113010.0,0.79331456]
[1761694501330,0.02341881,113020.0,113010.0,0.94840722]
[1761694501526,0.62649831,113040.0,113030.0,0.05664]
[1761694501731,0.61822586,113040.0,113030.0,0.21173266]
[1761694502228,0.07857078,113040.0,113030.0,0.21173266]
[1761694502627,0.06816078,113040.0,113030.0,0.21173266]
[1761694502833,0.20644078,113040.0,113030.0,0.21173266]
[1761694503033,0.20744078,113040.0,113030.0,0.21173266]
[1761694503229,0.22925344,113040.0,113030.0,0.05664]
[1761694503426,0.37294344,113040.0,113030.0,0.04326]
[1761694504935,0.05711,113030.0,113010.0,0.50648]
[1761694505139,0.72825532,113020.0,113010.0,0.02188]
[1761694505433,0.05719,113010.0,113000.0,0.70557266]
[1761694505627,0.21228266,113010.0,113000.0,0.70557266]
[1761694505829,0.21228266,113010.0,113000.0,0.55048]
[1761694506035,0.21228266,113010.0,113000.0,0.40386]
[1761694506539,0.21228266,113010.0,113000.0,0.55895266]
[1761694506739,0.21228266,113010.0,113000.0,0.57241266]
[1761694507242,0.05719,113010.0,113000.0,0.57241266]
[1761694507444,0.04442,113010.0,113000.0,0.57241266]
[1761694508344,0.04442,113010.0,113000.0,0.57341266]
[1761694508649,0.19951266,113010.0,113000.0,0.21261266]
[1761694508855,0.21328266,113010.0,113000.0,0.05652]
[1761694509057,0.21328266,113010.0,113000.0,0.04306]
[1761694512055,0.21328266,113010.0,113000.0,0.05655]
[1761694512958,0.05819,113010.0,113000.0,0.05655]
[1761694513257,0.21328266,113010.0,113000.0,0.21164266]
[1761694513456,0.05819,113010.0,113000.0,0.04306]
[1761694513651,0.05819,113010.0,113000.0,0.05655]
[1761694516455,0.04542,113010.0,113000.0,0.05655]
[1761694518466,0.04542,113010.0,113000.0,0.41735]
[1761694523962,0.001,113010.0,113000.0,0.66092334]
[1761694524160,0.82753919,113040.0,113030.0,0.04368]
[1761694524161,0.81768242,113040.0,113030.0,0.04368]
[1761694524362,0.46180019,113040.0,113030.0,0.04368]
[1761694524557,0.46180019,113040.0,113020.0,0.17696]
[1761694524558,0.05648,113030.0,113020.0,0.17696]
[1761694524869,0.07967777,113030.0,113020.0,0.17696]
[1761694525456,0.07967777,113030.0,113020.0,0.19045]
[1761694525655,0.06682777,113030.0,113020.0,0.19045]
[1761694526062,0.07082777,113030.0,113020.0,0.19045]
[1761694527073,0.07182777,113030.0,113020.0,0.19045]
[1761694528070,0.07182777,113030.0,113020.0,0.55125]
[1761694528473,0.07182777,113030.0,113020.0,0.6397241]
[1761694529366,0.04513242,113050.0,113040.0,0.02223]
[1761694529560,0.06683069,113050.0,113040.0,0.70641354]
[1761694530465,0.06783069,113050.0,113040.0,0.70641354]
[1761694530670,0.07083069,113050.0,113040.0,0.79487194]
[1761694530871,0.07083069,113050.0,113040.0,0.70641354]
[1761694531069,0.07083069,113050.0,113040.0,0.71544394]
[1761694531268,0.06683069,113050.0,113040.0,0.71544394]
[1761694531467,0.06883069,113050.0,113040.0,0.71544394]
[1761694531969,0.02520069,113050.0,113040.0,0.80390234]
[1761694532158,0.02520069,113050.0,113040.0,0.95898588]
[1761694532362,0.02520069,113050.0,113040.0,0.80390234]
[1761694534272,0.002,113050.0,113040.0,0.80390234]
[1761694534869,0.02503515,113050.0,113040.0,0.80390234]
[1761694535070,0.002,113050.0,113040.0,0.86746769]
[1761694536277,0.002,113050.0,113040.0,0.80390234]
[1761694536769,0.04572,113050.0,113040.0,0.55133]
[1761694536975,0.05841,113050.0,113040.0,0.53784]
[1761694537674,0.05841,113050.0,113040.0,0.55101]
[1761694537874,0.57429354,113050.0,113040.0,0.17704]
[1761694538175,0.57429354,113050.0,113040.0,0.17803]
[1761694539378,0.57429354,113050.0,113040.0,0.1912]
[1761694539379,0.56160354,113050.0,113040.0,0.1912]
[1761694539967,0.20080354,113050.0,113040.0,0.1912]
[1761694540163,0.04572,113050.0,113040.0,0.1912]
[1761694541270,0.04572,113050.0,113040.0,0.34628354]
[1761694541664,0.04572,113050.0,113040.0,0.70708354]
[1761694543276,0.04372,113050.0,113040.0,0.1932]
[1761694546985,0.04372,113050.0,113040.0,0.554]
[1761694547176,0.02254,113050.0,113040.0,0.554]
[1761694548583,0.04372,113050.0,113040.0,0.554]
[1761694549373,0.04372,113050.0,113040.0,0.1932]
[1761694549572,0.04372,113050.0,113040.0,0.554]
[1761694549776,0.04372,113050.0,113040.0,0.1932]
[1761694553483,0.04372,113050.0,113040.0,0.554]
[1761694553785,0.04372,113050.0,113040.0,0.1932]
[1761694553982,0.04372,113050.0,113040.0,0.554]
[1761694554183,0.04372,113050.0,113040.0,0.1932]
[1761694554385,0.04372,113050.0,113040.0,0.554]
[1761694555875,0.40452,113060.0,113050.0,0.05711]
[1761694557475,0.04372,113060.0,113050.0,0.05711]
[1761694559084,0.40452,113060.0,113050.0,0.05711]
[1761694559284,0.04372,113060.0,113050.0,0.05711]
[1761694562171,0.04372,113060.0,113050.0,0.57299354]
[1761694562371,0.04372,113060.0,113050.0,0.05711]
[1761694562884,0.04372,113060.0,113050.0,0.41791]
[1761694563584,0.04372,113060.0,113050.0,0.05711]
[1761694564086,0.04372,113060.0,113050.0,0.41791]
[1761694564288,0.04372,113060.0,113050.0,0.05711]
[1761694564586,0.04372,113060.0,113050.0,0.41791]
[1761694565083,0.04372,113060.0,113050.0,0.05711]
[1761694566583,0.04372,113060.0,113050.0,0.41791]
[1761694566784,0.04372,113060.0,113050.0,0.05711]
[1761694569090,0.06665414,113060.0,113050.0,0.05711]
[1761694569591,0.22173768,113060.0,113050.0,0.05711]
[1761694570394,0.06665414,113060.0,113050.0,0.05711]
[1761694570993,0.04372,113060.0,113050.0,0.05711]
[1761694571884,0.04372,113060.0,113050.0,0.41791]
[1761694572084,0.04372,113060.0,113050.0,0.05711]
[1761694572386,0.04372,113060.0,113050.0,0.41791]
[1761694572592,0.04372,113060.0,113050.0,0.05711]
[1761694572999,0.3836,113070.0,113060.0,0.05787]
[1761694573196,0.40654288,113070.0,113060.0,0.34619354]
[1761694573690,0.06827288,113070.0,113060.0,0.79543644]
[1761694573889,0.06827288,113070.0,113060.0,0.79543584]
[1761694574094,0.67569242,113090.0,113080.0,0.05787]
[1761694574289,0.69863416,113090.0,113080.0,0.19111]
[1761694575294,0.33783416,113090.0,113080.0,0.5008136]
[1761694575598,0.33783416,113090.0,113080.0,0.4343888]
[1761694575599,0.31407174,113090.0,113080.0,0.4343888]
[1761694575999,0.31807174,113090.0,113080.0,0.7951888]
[1761694576185,0.31907174,113090.0,113080.0,0.8616136]
[1761694576498,0.27374174,113090.0,113080.0,0.7067618]
[1761694576699,0.29654174,113090.0,113080.0,0.7067618]
[1761694576893,0.31907174,113090.0,113080.0,0.7067618]
[1761694577093,0.29654174,113090.0,113080.0,0.8616136]
[1761694577298,0.29554174,113090.0,113080.0,0.8616136]
[1761694577493,0.29254174,113090.0,113080.0,0.8616136]
[1761694577796,0.29554174,113090.0,113080.0,0.8616136]
[1761694577992,0.07227174,113090.0,113080.0,0.7283736]
[1761694578192,0.60069354,113090.0,113080.0,0.04443]
[1761694578495,0.05802,113080.0,113070.0,0.04443]
[1761694578793,0.75146534,113080.0,113070.0,0.17775]
[1761694578992,0.75146534,113080.0,113070.0,0.19119]
[1761694578993,0.42907174,113080.0,113070.0,0.19119]
[1761694579194,0.58392354,113080.0,113070.0,0.19119]
[1761694579594,0.73877534,113080.0,113070.0,0.19119]
[1761694579792,0.58592354,113080.0,113070.0,0.19119]
[1761694580593,0.43107174,113080.0,113070.0,0.19119]
[1761694580791,0.58592354,113080.0,113070.0,0.19119]
[1761694580998,0.59861354,113080.0,113070.0,0.17775]
[1761694581197,0.43107174,113080.0,113070.0,0.19119]
[1761694581399,0.58592354,113080.0,113070.0,0.19119]
[1761694582699,0.75346534,113080.0,113070.0,0.19119]
[1761694583305,0.7305236,113080.0,113070.0,0.19119]
[1761694583503,0.7305236,113080.0,113070.0,0.17775]
[1761694583706,0.7305236,113080.0,113070.0,0.17779]
[1761694584591,0.7305236,113080.0,113070.0,0.04443]
[1761694584796,0.7305236,113080.0,113070.0,0.15454]
[1761694585902,0.7305236,113080.0,113070.0,0.13336]
[1761694586108,0.75342557,113080.0,113070.0,0.13336]
[1761694586410,0.75342557,113080.0,113070.0,0.17779]
[1761694586807,0.75342557,113080.0,113070.0,0.19123]
[1761694587205,0.5629818,113080.0,113070.0,0.19123]
[1761694587399,0.2021818,113080.0,113070.0,0.55203]
[1761694588000,0.04733,113080.0,113070.0,0.55203]
[1761694588209,0.2021818,113080.0,113070.0,0.55203]
[1761694588709,0.0248,113080.0,113070.0,0.7068818]
[1761694589610,0.001,113080.0,113070.0,0.7068818]
[1761694589809,0.2001818,113090.0,113080.0,0.04443]
[1761694590014,0.22308685,113090.0,113080.0,0.05787]
[1761694590202,0.06823505,113090.0,113080.0,0.05787]
[1761694590803,0.58474422,113110.0,113100.0,0.05787]
[1761694591006,0.58474422,113110.0,113100.0,0.19127]
[1761694591007,0.60764994,113110.0,113100.0,0.19127]
[1761694591510,0.5609818,113110.0,113100.0,0.19127]
[1761694591813,0.5609818,113110.0,113100.0,0.19139]
[1761694591814,0.2130318,113110.0,113100.0,0.19139]
[1761694592203,0.2001818,113110.0,113100.0,0.19139]
[1761694592808,0.2011818,113110.0,113100.0,0.19139]
[1761694593012,0.04733,113110.0,113100.0,0.19139]
[1761694593220,0.5629818,113110.0,113100.0,0.19139]
[1761694593407,0.5629818,113110.0,113100.0,0.19143]
[1761694593809,0.2021818,113110.0,113100.0,0.19143]
[1761694595617,0.04733,113110.0,113100.0,0.19143]
[1761694596120,0.2021818,113110.0,113100.0,0.19143]
[1761694597219,0.0601,113110.0,113100.0,0.17799]
[1761694597424,0.2149518,113110.0,113100.0,0.17799]
[1761694597604,0.5757518,113110.0,113100.0,0.17799]
[1761694598425,0.5757518,113110.0,113100.0,0.17795]
[1761694598722,0.5757518,113110.0,113100.0,0.05731]
[1761694598922,0.5757518,113110.0,113100.0,0.19083]
[1761694600623,0.5757518,113110.0,113100.0,0.05731]
[1761694600823,0.5757518,113110.0,113100.0,0.19083]
[1761694602634,0.5757518,113110.0,113100.0,0.05731]
[1761694602835,0.5757518,113110.0,113100.0,0.19079]
[1761694603032,0.5757518,113110.0,113090.0,0.04435]
[1761694603033,0.05389,113100.0,113090.0,0.04435]
[1761694603228,0.7243936,113100.0,113090.0,0.17783]
[1761694603531,0.04348,113100.0,113090.0,0.19071]
[1761694603739,0.3531836,113100.0,113090.0,0.19071]
[1761694604238,0.04348,113100.0,113090.0,0.19071]
[1761694604533,0.3635936,113100.0,113090.0,0.19071]
[1761694604738,0.3635936,113100.0,113090.0,0.17783]
[1761694607338,0.7243936,113100.0,113090.0,0.19071]
[1761694607637,0.3531836,113100.0,113090.0,0.55151]
[1761694607827,0.3531836,113100.0,113090.0,0.19071]
[1761694608334,0.3531836,113100.0,113090.0,0.55151]
[1761694608539,0.3531836,113100.0,113090.0,0.19071]
[1761694613144,0.1983318,113100.0,113090.0,0.55151]
[1761694613343,0.1983318,113100.0,113090.0,0.7063618]
[1761694614151,0.1983318,113100.0,113090.0,0.3455618]
[1761694614445,0.1983318,113100.0,113090.0,0.19071]
[1761694615141,0.1983318,113100.0,113090.0,0.55151]
[1761694615333,0.1983318,113100.0,113090.0,0.7063618]
[1761694615334,0.04348,113100.0,113090.0,0.7063618]
[1761694615538,0.04348,113100.0,113090.0,0.794781]
[1761694615841,0.04348,113100.0,113090.0,0.7063618]
[1761694617744,0.5591318,113110.0,113100.0,0.05723]
[1761694619039,0.1993318,113110.0,113100.0,0.05723]
[1761694619634,0.2003318,113110.0,113100.0,0.2120818]
[1761694620039,0.2003318,113110.0,113100.0,0.05723]
[1761694621441,0.04348,113100.0,113090.0,0.17783]
[1761694621631,0.3635936,113100.0,113090.0,0.04435]
[1761694621835,0.04348,113100.0,113090.0,0.6399692]
[1761694622048,0.3531836,113100.0,113090.0,0.2791692]
[1761694622341,0.04348,113100.0,113090.0,0.85838635]
[1761694622531,0.1983318,113100.0,113090.0,0.85838635]
[1761694623641,0.04348,113100.0,113090.0,0.85838635]
[1761694624747,0.04348,113100.0,113090.0,0.76996715]
[1761694628450,0.1983318,113100.0,113090.0,0.40916715]
[1761694628644,0.1983318,113100.0,113090.0,0.25431535]
[1761694629352,0.3531836,113100.0,113090.0,0.25431535]
[1761694635058,0.3635936,113100.0,113090.0,0.10791535]
[1761694635248,0.3635936,113100.0,113090.0,0.24135535]
[1761694635449,0.2087557,113100.0,113090.0,0.25437535]
[1761694637855,0.05389,113100.0,113090.0,0.25437535]
[1761694638158,0.2087557,113100.0,113090.0,0.25437535]
[1761694638962,0.04348,113100.0,113090.0,0.61517535]
[1761694640152,0.1676357,113110.0,113100.0,0.02304]
[1761694640153,0.38381,113110.0,113100.0,0.02304]
[1761694640360,0.65119,113120.0,113110.0,0.05805]
[1761694640555,0.67434163,113120.0,113110.0,0.19145]
[1761694641754,0.67434163,113120.0,113110.0,0.20014251]
[1761694642347,0.83020733,113120.0,113110.0,0.20014251]
[1761694642750,0.83020733,113120.0,113110.0,0.19145]
[1761694643156,0.83320733,113120.0,113110.0,0.19145]
[1761694643758,0.83320733,113120.0,113110.0,0.20033741]
[1761694644658,0.83320734,113120.0,113110.0,0.20033741]
[1761694645556,0.67834164,113120.0,113110.0,0.20033741]
[1761694645753,0.83320734,113120.0,113110.0,0.20033741]
[1761694645953,0.47240734,113120.0,113110.0,0.20033741]
[1761694646159,0.02701,113120.0,113110.0,0.44360681]
[1761694646556,0.004,113120.0,113110.0,0.44360681]
[1761694647167,0.004,113120.0,113110.0,0.28874111]
[1761694647664,0.004,113120.0,113110.0,0.44360681]
[1761694647862,0.004,113120.0,113110.0,0.80440681]
[1761694648359,0.004,113120.0,113110.0,0.64954111]
[1761694648566,0.04859,113120.0,113110.0,0.56113741]
[1761694648869,0.04859,113120.0,113110.0,0.64954101]
[1761694651867,0.2034557,113120.0,113110.0,0.06693741]
[1761694652067,0.2034557,113120.0,113110.0,0.20033741]
[1761694652461,0.2034557,113120.0,113110.0,0.20029741]
[1761694654871,0.2034557,113120.0,113110.0,0.19141]
[1761694656670,0.04859,113120.0,113110.0,0.19141]
[1761694656966,0.04859,113120.0,113110.0,0.05805]
[1761694657272,0.04859,113120.0,113110.0,0.19141]
[1761694659072,0.04859,113120.0,113110.0,0.05805]
[1761694659256,0.04859,113120.0,113110.0,0.19137]
[1761694659460,0.07171982,113120.0,113110.0,0.55217]
[1761694659866,0.07171982,113120.0,113110.0,0.05805]
[1761694660071,0.07171982,113120.0,113110.0,0.19137]
[1761694660772,0.22658552,113120.0,113110.0,0.19137]
[1761694661966,0.07171982,113120.0,113110.0,0.19137]
[1761694665071,0.07171982,113120.0,113110.0,0.05805]
[1761694665375,0.07171982,113120.0,113110.0,0.19133]
[1761694666362,0.22658552,113120.0,113110.0,0.19133]
[1761694666567,0.60011552,113120.0,113110.0,0.17831]
[1761694666971,0.60011552,113120.0,113110.0,0.19108]
[1761694667171,0.58738552,113120.0,113110.0,0.19108]
[1761694667980,0.60011552,113120.0,113110.0,0.04503]
[1761694668179,0.59911552,113120.0,113110.0,0.17831]
[1761694668682,0.59911552,113120.0,113110.0,0.19108]
[1761694669070,0.59911552,113120.0,113100.0,0.04296]
[1761694669071,0.0529,113110.0,113100.0,0.04296]
[1761694669270,0.23105802,113110.0,113100.0,0.17624]
[1761694671184,0.23105802,113110.0,113100.0,0.19783504]
[1761694671376,0.22064802,113110.0,113100.0,0.19783504]
[1761694673074,0.04249,113110.0,113100.0,0.19783504]
[1761694675283,0.04249,113110.0,113100.0,0.55863504]
[1761694675484,0.04249,113110.0,113100.0,0.56063504]
[1761694678084,0.04249,113110.0,113100.0,0.19983504]
[1761694680593,0.02108,113110.0,113100.0,0.19983504]
[1761694680789,0.04249,113110.0,113100.0,0.19983504]
[1761694682092,0.1973557,113120.0,113110.0,0.05573]
[1761694682293,0.2206495,113120.0,113110.0,0.05573]
[1761694683390,0.5814495,113120.0,113110.0,0.05573]
[1761694684887,0.5814495,113120.0,113110.0,0.02191]
[1761694685094,0.05765,113110.0,113100.0,0.04398]
[1761694685294,0.2358095,113110.0,113100.0,0.17738]
[1761694685484,0.2358095,113110.0,113100.0,0.18629009]
[1761694685684,0.2358095,113110.0,113100.0,0.17738]
[1761694686397,0.2358095,113110.0,113100.0,0.17938]
[1761694686781,0.2358095,113110.0,113100.0,0.17738]
[1761694686987,0.2358095,113110.0,113100.0,0.17938]
[1761694688291,0.2358095,113110.0,113100.0,0.17738]
[1761694688688,0.2358095,113110.0,113100.0,0.04398]
[1761694688887,0.2358095,113110.0,113100.0,0.17738]
[1761694689702,0.2358095,113110.0,113100.0,0.1334]
[1761694690198,0.2358095,113110.0,113100.0,0.15579]
[1761694690801,0.2358095,113110.0,113100.0,0.17847]
[1761694691599,0.2368095,113110.0,113100.0,0.17847]
[1761694692294,0.2378095,113110.0,113100.0,0.17847]
[1761694693499,0.0829438,113110.0,113100.0,0.17847]
[1761694693699,0.2378095,113110.0,113100.0,0.17847]
[1761694694503,0.2378095,113110.0,113100.0,0.19208]
[1761694694698,0.2378095,113110.0,113100.0,0.17847]
[1761694695293,0.0829438,113110.0,113100.0,0.17847]
[1761694695493,0.2378095,113110.0,113100.0,0.17847]
[1761694697401,0.2377939,113110.0,113100.0,0.17847]
[1761694698200,0.2377939,113110.0,113100.0,0.19208]
[1761694699106,0.2377939,113110.0,113100.0,0.17847]
[1761694699802,0.392644,113110.0,113100.0,0.17847]
[1761694701506,0.2377939,113110.0,113100.0,0.17847]
[1761694701807,0.392644,113110.0,113100.0,0.17847]
[1761694702908,0.2377939,113110.0,113100.0,0.17847]
[1761694703712,0.2377939,113110.0,113100.0,0.19208]
[1761694704804,0.2367939,113110.0,113100.0,0.19208]
[1761694705102,0.2230639,113110.0,113100.0,0.19208]
[1761694710000,0.377914,113110.0,113100.0,0.19208]
[1761694710610,0.390644,113110.0,113100.0,0.19208]
[1761694710800,0.390644,113110.0,113100.0,0.17847]
[1761694711810,0.391644,113110.0,113100.0,0.17847]
[1761694712001,0.392644,113110.0,113100.0,0.17847]
[1761694718513,0.379914,113110.0,113100.0,0.19119]
[1761694720418,0.392644,113110.0,113100.0,0.19119]
[1761694729217,0.0702138,113110.0,113100.0,0.19119]
[1761694729423,0.379914,113110.0,113100.0,0.19119]
[1761694737318,0.392644,113110.0,113100.0,0.17847]
[1761694740327,0.05753,113090.0,113080.0,0.0582]
[1761694740522,0.05753,113090.0,113080.0,0.04476]
[1761694740523,0.3672302,113090.0,113080.0,0.04476]
[1761694740722,0.3672302,113090.0,113080.0,0.178]
[1761694741525,0.0214,113080.0,113070.0,0.07963441]
[1761694741727,0.3648002,113080.0,113070.0,0.178]
[1761694742129,0.5196503,113080.0,113070.0,0.178]
[1761694742523,0.3648002,113080.0,113070.0,0.178]
[1761694743327,0.5196503,113080.0,113070.0,0.178]
[1761694743529,0.5196503,113080.0,113070.0,0.181]
[1761694743728,0.6528903,113080.0,113070.0,0.003]
[1761694743919,0.6528903,113080.0,113060.0,0.14596]
[1761694744120,0.3670202,113070.0,113060.0,0.19023]
[1761694746824,0.3542902,113070.0,113060.0,0.19023]
[1761694751231,0.3670202,113070.0,113060.0,0.17751]
[1761694752423,0.3670202,113070.0,113060.0,0.04427]
[1761694752632,0.3670202,113070.0,113060.0,0.02103]
[1761694753524,0.3670202,113070.0,113050.0,0.14609363]
[1761694753525,0.05673,113060.0,113050.0,0.19001363]
[1761694753824,0.3664302,113060.0,113050.0,0.19001363]
[1761694754234,0.3537002,113060.0,113050.0,0.19001363]
[1761694754827,0.3537002,113060.0,113050.0,0.19891146]
[1761694755026,0.3537002,113060.0,113050.0,0.19201363]
[1761694757437,0.19897555,113060.0,113050.0,0.19201363]
[1761694767842,0.19897555,113060.0,113050.0,0.27164804]
[1761694768043,0.044,113070.0,113060.0,0.05702]
[1761694768233,0.19897555,113080.0,113070.0,0.05702]
[1761694768543,0.044,113080.0,113070.0,0.1903]
[1761694769434,0.19897555,113080.0,113070.0,0.1903]
[1761694770637,0.19997555,113080.0,113070.0,0.1903]
[1761694771140,0.20097555,113080.0,113070.0,0.1903]
[1761694771642,0.19997555,113080.0,113070.0,0.1903]
[1761694771844,0.19897555,113080.0,113070.0,0.1903]
[1761694781250,0.2224723,113080.0,113070.0,0.1903]
[1761694782250,0.2353123,113080.0,113070.0,0.1772]
[1761694782654,0.2353123,113080.0,113070.0,0.04392]
[1761694783854,0.2363123,113080.0,113070.0,0.04392]
[1761694784747,0.2373123,113080.0,113070.0,0.04392]
[1761694786259,0.2363123,113080.0,113070.0,0.04392]
[1761694786946,0.2373123,113080.0,113070.0,0.04392]
[1761694788348,0.2363123,113080.0,113070.0,0.04392]
[1761694789153,0.2353123,113080.0,113070.0,0.04392]
[1761694789356,0.2363123,113080.0,113070.0,0.04392]
[1761694790654,0.2373123,113080.0,113070.0,0.04392]
[1761694791858,0.39228785,113080.0,113060.0,0.14638]
[1761694792057,0.3669411,113070.0,113060.0,0.17621]
[1761694794763,0.3669411,113070.0,113060.0,0.17617]
[1761694795359,0.3669411,113070.0,113060.0,0.1892]
[1761694796460,0.3542111,113070.0,113060.0,0.1892]
[1761694796664,0.19923555,113070.0,113060.0,0.1892]
[1761694798355,0.3542111,113070.0,113060.0,0.1892]
[1761694800865,0.3670511,113070.0,113060.0,0.17617]
[1761694801274,0.05699,113060.0,113050.0,0.04302363]
[1761694801466,0.21196555,113060.0,113050.0,0.18929363]
[1761694802361,0.19923555,113060.0,113050.0,0.18929363]
[1761694802763,0.19923555,113060.0,113050.0,0.19129363]
[1761694806371,0.21196555,113060.0,113050.0,0.19129363]
[1761694810180,0.21196555,113060.0,113050.0,0.04502363]
[1761694810368,0.21196555,113060.0,113050.0,0.19092363]
[1761694812469,0.19923555,113060.0,113050.0,0.19092363]
[1761694819375,0.22267132,113080.0,113070.0,0.05806]
[1761694819581,0.22239884,113080.0,113070.0,0.05806]
[1761694819782,0.22239884,113080.0,113070.0,0.1913]
[1761694819970,0.3773738,113080.0,113070.0,0.1913]
[1761694820171,0.3900638,113080.0,113070.0,0.17864]
[1761694820766,0.3910638,113080.0,113070.0,0.17864]
[1761694820980,0.3920638,113080.0,113070.0,0.17864]
[1761694821871,0.3920638,113080.0,113070.0,0.0454]
[1761694822072,0.54703876,113080.0,113070.0,0.0454]
[1761694822285,0.54603876,113080.0,113070.0,0.02218]
[1761694822489,0.05663,113070.0,113060.0,0.1913]
[1761694822676,0.3900638,113070.0,113060.0,0.1913]
[1761694826986,0.3900638,113070.0,113060.0,0.17864]
[1761694827176,0.36657992,113070.0,113060.0,0.0454]
[1761694827378,0.39006896,113070.0,113060.0,0.0454]
[1761694829186,0.52330896,113070.0,113060.0,0.0454]
[1761694832886,0.52330896,113070.0,113060.0,0.05806]
[1761694833590,0.222404,113070.0,113060.0,0.05806]
[1761694833892,0.19891496,113070.0,113060.0,0.05806]
[1761694835093,0.04394,113070.0,113060.0,0.05806]
[1761694835292,0.19891496,113070.0,113060.0,0.05806]
[1761694836996,0.55971496,113070.0,113060.0,0.05806]
[1761694848706,0.71468992,113070.0,113060.0,0.05806]
[1761694849116,0.55971496,113070.0,113060.0,0.05806]
[1761694850310,0.58306791,113070.0,113060.0,0.05806]
[1761694859115,0.59575791,113070.0,113060.0,0.05806]
[1761694860319,0.75073287,113070.0,113060.0,0.0454]
[1761694860513,0.04449,113060.0,113050.0,0.17889363]
[1761694860720,0.72792992,113060.0,113050.0,0.17889363]
[1761694860908,0.72792992,113060.0,113050.0,0.04565363]
[1761694861110,0.72792992,113060.0,113050.0,0.17885363]
[1761694861817,0.72792992,113060.0,113050.0,0.18085363]
[1761694863212,0.72792992,113060.0,113050.0,0.17885363]
[1761694864425,0.72792992,113060.0,113050.0,0.19204363]
[1761694870739,0.36712992,113060.0,113050.0,0.19204363]
[1761694870941,0.72792992,113060.0,113050.0,0.19204363]
[1761694872342,0.72792992,113060.0,113050.0,0.05884363]
[1761694872533,0.72792992,113060.0,113050.0,0.19204363]
[1761694872934,0.72792992,113060.0,113050.0,0.19404363]
[1761694873745,0.72792992,113060.0,113050.0,0.18085363]
[1761694874345,0.36712992,113060.0,113050.0,0.18085363]
[1761694874747,0.36712992,113060.0,113050.0,0.17885363]
[1761694875645,0.72792992,113060.0,113050.0,0.17885363]
[1761694876335,0.72792992,113060.0,113050.0,0.18085363]
[1761694878245,0.75129201,113060.0,113050.0,0.18085363]
[1761694878432,0.75129201,113060.0,113050.0,0.00209363]
[1761694878633,1.03946697,113060.0,113050.0,0.00209363]
[1761694878844,0.0348,113040.0,113030.0,0.04397]
[1761694879043,0.36615992,113040.0,113030.0,0.17717]
[1761694879439,0.36630364,113040.0,113030.0,0.17717]
[1761694879746,0.72719101,113040.0,113030.0,0.04397]
[1761694879946,0.57214419,113040.0,113030.0,0.17717]
[1761694880450,0.57214419,113040.0,113030.0,0.18017]
[1761694882243,0.72719101,113040.0,113030.0,0.003]